bitfinex/quotes_SOLUSD_20251001
["timestamp","ask_amount","ask_price","bid_price","bid_amount"]
[1759317691839,0.72,217.77,217.76,45.73559401]
[1759317692853,0.72,217.8,217.77,13.59559401]
[1759317693037,0.1,217.81,217.79,13.59559401]
[1759317693236,0.82,217.81,217.8,45.73559401]
[1759317693756,0.82,217.81,217.8,32.14]
[1759317693954,0.1,217.81,217.8,13.59559401]
[1759317694160,0.1,217.81,217.8,45.73559401]
[1759317695657,0.82,217.81,217.8,45.73559401]
[1759317697346,0.1,217.81,217.8,45.73559401]
[1759317698056,0.82,217.81,217.8,45.73559401]
[1759317698356,0.82,217.81,217.8,13.59559401]
[1759317698660,0.82,217.81,217.8,45.73559401]
[1759317699365,0.1,217.81,217.8,45.73559401]
[1759317701350,0.82,217.81,217.8,45.71559401]
[1759317702755,0.82,217.81,217.8,81.53559401]
[1759317704370,0.82,217.81,217.8,13.59559401]
[1759317704853,0.82,217.81,217.8,81.53559401]
[1759317706065,0.1,217.81,217.8,81.53559401]
[1759317707754,0.1,217.83,217.81,13.59559401]
[1759317707949,0.1,217.83,217.82,13.59559401]
[1759317708155,0.1,217.83,217.82,45.71559401]
[1759317709250,0.1,217.83,217.82,13.59559401]
[1759317709457,0.1,217.83,217.82,45.71559401]
[1759317709771,0.82,217.83,217.82,13.59559401]
[1759317709967,0.82,217.83,217.82,45.71559401]
[1759317710672,0.82,217.83,217.82,13.59559401]
[1759317710871,0.82,217.83,217.82,81.51559401]
[1759317711575,0.82,217.83,217.82,49.39559401]
[1759317711873,0.82,217.83,217.82,81.51559401]
[1759317715164,0.82,217.83,217.71,6.75740371]
[1759317715471,0.71,217.82,217.75,34.39559401]
[1759317715676,0.71,217.81,217.77,13.59559401]
[1759317715871,0.71,217.8,217.75,13.59559401]
[1759317716063,0.1,217.83,217.77,13.59559401]
[1759317716253,0.1,217.83,217.79,13.59559401]
[1759317716254,0.71,217.82,217.79,13.59559401]
[1759317716454,0.1,217.83,217.81,13.59559401]
[1759317716763,0.1,217.83,217.82,32.12]
[1759317717670,0.81,217.83,217.82,32.12]
[1759317718472,0.1,217.83,217.82,45.71559401]
[1759317718668,0.81,217.83,217.82,45.71559401]
[1759317720275,0.1,217.83,217.82,45.71559401]
[1759317722681,0.81,217.83,217.82,45.71559401]
[1759317723863,0.81,217.83,217.82,13.59559401]
[1759317724176,0.81,217.83,217.82,32.12]
[1759317725783,0.81,217.83,217.77,13.59559401]
[1759317725969,0.71,217.82,217.79,13.59559401]
[1759317726166,0.81,217.83,217.8,32.12]
[1759317726367,0.71,217.82,217.8,32.12]
[1759317726570,0.71,217.81,217.8,45.71559401]
[1759317726764,0.71,217.81,217.8,13.59559401]
[1759317727082,0.71,217.81,217.8,45.71559401]
[1759317727454,0.71,217.82,217.8,45.71559401]
[1759317727985,0.71,217.81,217.8,13.59559401]
[1759317728180,0.71,217.81,217.8,45.71559401]
[1759317728367,0.71,217.81,217.8,13.59559401]
[1759317728683,0.71,217.81,217.8,45.71559401]
[1759317730361,0.81,217.83,217.8,45.71559401]
[1759317730563,0.71,217.82,217.8,45.71559401]
[1759317731171,0.71,217.81,217.8,45.71559401]
[1759317731491,0.1,217.83,217.81,13.59559401]
[1759317731672,0.1,217.83,217.82,45.73559401]
[1759317731984,0.1,217.83,217.82,13.59559401]
[1759317732187,0.1,217.83,217.82,45.95559401]
[1759317733394,0.81,217.83,217.82,32.36]
[1759317734106,0.81,217.83,217.77,13.59559401]
[1759317734393,0.81,217.83,217.79,13.59559401]
[1759317734593,0.81,217.83,217.8,32.4]
[1759317734778,0.71,217.82,217.8,32.4]
[1759317735966,0.1,217.83,217.81,13.59559401]
[1759317736290,0.1,217.83,217.82,45.99559401]
[1759317736593,0.1,217.83,217.82,45.97559401]
[1759317738992,0.81,217.83,217.82,13.59559401]
[1759317739191,0.81,217.83,217.82,45.97559401]
[1759317739495,0.81,217.83,217.82,13.59559401]
[1759317739685,0.81,217.83,217.82,45.95559401]
[1759317740266,0.81,217.83,217.82,81.75559401]
[1759317740866,0.81,217.83,217.82,49.39559401]
[1759317741069,0.81,217.83,217.82,35.8]
[1759317741284,0.81,217.83,217.82,68.16]
[1759317741471,0.81,217.83,217.82,35.8]
[1759317741680,0.81,217.83,217.82,68.14]
[1759317744001,0.81,217.83,217.82,35.8]
[1759317744594,0.81,217.83,217.82,68.16]
[1759317744994,0.81,217.83,217.82,32.36]
[1759317745597,0.81,217.83,217.73,13.59559401]
[1759317745598,2.59093915,217.83,217.73,13.59559401]
[1759317745777,1.78093915,217.81,217.75,13.59559401]
[1759317746096,0.67,217.8,217.76,32.34]
[1759317746285,0.67,217.79,217.76,32.34]
[1759317746486,0.67,217.78,217.76,32.34]
[1759317746688,1.78093915,217.81,217.76,32.34]
[1759317746897,0.67,217.77,217.76,32.34]
[1759317747674,0.67,217.77,217.72,35.8]
[1759317747896,0.67,217.76,217.73,45.93559401]
[1759317748081,0.67,217.75,217.73,13.59559401]
[1759317748281,3.19046336,217.83,217.72,35.8]
[1759317748282,0.67,217.74,217.72,35.8]
[1759317748502,1.78093915,217.76,217.72,35.8]
[1759317748503,0.67,217.73,217.72,35.8]
[1759317748699,0.67,217.73,217.72,68.14]
[1759317748896,0.67,217.73,217.72,35.8]
[1759317749106,0.67,217.73,217.72,68.14]
[1759317750096,0.67,217.73,217.72,35.8]
[1759317750305,0.67,217.73,217.68,13.59559401]
[1759317750306,0.67,217.73,217.66,13.59559401]
[1759317750481,0.67,217.72,217.68,13.59559401]
[1759317750809,0.67,217.71,217.69,32.34]
[1759317750979,1.78093915,217.74,217.7,32.34]
[1759317751180,10.31421996,217.8,217.71,32.34]
[1759317751389,1.78093915,217.74,217.72,32.34]
[1759317751707,1.78093915,217.74,217.73,32.34]
[1759317752304,0.67,217.74,217.73,32.34]
[1759317752678,2.45093915,217.74,217.73,32.34]
[1759317753706,0.67,217.74,217.73,32.34]
[1759317753906,2.45093915,217.74,217.73,32.34]
[1759317756280,2.45093915,217.74,217.73,32.32]
[1759317757708,20.8,217.73,217.66,35.82]
[1759317758009,1.78093915,217.7,217.67,32.32]
[1759317758187,0.67,217.69,217.67,32.32]
[1759317758389,0.67,217.68,217.67,32.32]
[1759317758986,0.67,217.68,217.66,35.82]
[1759317759306,0.67,217.68,217.67,32.32]
[1759317759683,20.8,217.69,217.67,32.32]
[1759317760105,0.67,217.68,217.67,32.32]
[1759317760316,0.67,217.68,217.66,35.82]
[1759317760606,22.58093915,217.69,217.67,32.32]
[1759317761190,0.67,217.68,217.67,32.32]
[1759317762284,0.67,217.68,217.67,32.34]
[1759317762704,0.67,217.68,217.66,35.82]
[1759317763013,1.78093915,217.69,217.67,32.32]
[1759317763317,1.78093915,217.68,217.67,32.32]
[1759317763524,21.47,217.68,217.67,32.32]
[1759317763698,23.25093915,217.68,217.67,32.32]
[1759317766597,37.07949937,217.68,217.67,32.32]
[1759317767198,37.07949937,217.68,217.66,35.82]
[1759317767402,13.79849596,217.7,217.67,32.36]
[1759317767600,154.3,217.71,217.67,32.36]
[1759317767806,154.97,217.71,217.67,32.36]
[1759317770597,0.67,217.7,217.67,32.36]
[1759317771718,167.88410596,217.71,217.67,32.36]
[1759317772023,0.67,217.74,217.67,32.36]
[1759317772318,15.57562819,217.75,217.67,32.36]
[1759317772508,0.67,217.73,217.67,32.36]
[1759317773011,0.67,217.76,217.67,32.36]
[1759317773695,15.57435968,217.77,217.67,32.36]
[1759317773901,0.72,217.76,217.67,32.36]
[1759317774107,0.72,217.75,217.67,32.36]
[1759317774418,0.72,217.74,217.67,32.36]
[1759317774918,0.72,217.73,217.67,32.36]
[1759317775623,0.72,217.72,217.68,32.3]
[1759317775795,0.72,217.71,217.69,32.3]
[1759317775999,0.72,217.71,217.7,32.3]
[1759317777905,0.72,217.72,217.7,32.3]
[1759317778110,22.58093915,217.74,217.71,32.3]
[1759317778923,0.72,217.73,217.71,32.3]
[1759317779123,0.72,217.73,217.66,35.82]
[1759317779320,0.72,217.72,217.67,32.3]
[1759317780230,21.52,217.74,217.67,32.3]
[1759317780434,0.72,217.73,217.67,32.3]
[1759317780931,0.72,217.73,217.68,32.28]
[1759317781427,1.78093915,217.74,217.68,32.28]
[1759317781925,0.72,217.73,217.68,32.28]
[1759317782124,0.72,217.72,217.68,32.28]
[1759317782324,0.72,217.73,217.68,32.28]
[1759317783835,16.29562819,217.76,217.68,32.28]
[1759317784230,0.72,217.75,217.68,32.28]
[1759317784741,13.79468904,217.76,217.68,32.28]
[1759317784909,0.72,217.77,217.68,32.28]
[1759317785628,1.78093915,217.78,217.68,32.28]
[1759317786020,2.50093915,217.78,217.68,32.28]
[1759317786218,0.72,217.78,217.68,32.28]
[1759317786439,13.79278637,217.79,217.69,13.59559401]
[1759317786612,13.56071687,217.82,217.69,13.59559401]
[1759317786812,2.50093915,217.82,217.69,13.59559401]
[1759317787027,1.78093915,217.82,217.69,13.59559401]
[1759317787336,2.50093915,217.81,217.69,13.59559401]
[1759317788730,13.87540603,217.82,217.69,13.59559401]
[1759317788933,1.88093915,217.83,217.71,13.59559401]
[1759317789146,0.82,217.83,217.71,13.59559401]
[1759317790129,1.88093915,217.83,217.69,13.59559401]
[1759317790332,0.72,217.82,217.71,13.59559401]
[1759317790740,2.50093915,217.82,217.73,13.59559401]
[1759317792438,2.50093915,217.82,217.7,13.59559401]
[1759317792625,2.50093915,217.82,217.71,32.24]
[1759317794421,2.50093915,217.82,217.72,32.24]
[1759317795318,2.50093915,217.81,217.72,32.24]
[1759317796326,1.78093915,217.82,217.72,32.24]
[1759317796840,2.50093915,217.82,217.72,32.24]
[1759317797147,0.72,217.81,217.72,32.24]
[1759317797523,2.50093915,217.81,217.72,32.24]
[1759317797928,2.50093915,217.81,217.73,32.22]
[1759317799235,0.72,217.81,217.73,32.22]
[1759317799723,2.50093915,217.81,217.73,32.22]
[1759317799922,2.50093915,217.81,217.7,13.59559401]
[1759317800324,2.50093915,217.81,217.71,32.2]
[1759317800924,1.78093915,217.81,217.7,13.59559401]
[1759317801124,0.71,217.8,217.71,32.2]
[1759317802730,0.71,217.82,217.71,32.2]
[1759317802955,2.49093915,217.82,217.72,32.2]
[1759317803750,1.78093915,217.82,217.72,32.2]
[1759317803939,1.78093915,217.8,217.73,32.18]
[1759317804145,0.66,217.79,217.73,32.18]
[1759317804535,0.66,217.78,217.73,32.18]
[1759317804857,2.78414042,217.8,217.73,32.18]
[1759317805065,0.66,217.78,217.74,32.18]
[1759317805647,0.66,217.78,217.67,13.59559401]
[1759317805845,0.66,217.77,217.68,32.18]
[1759317806053,0.66,217.77,217.66,56.62]
[1759317806054,0.66,217.77,217.69,32.18]
[1759317806227,0.66,217.76,217.66,56.62]
[1759317806536,0.66,217.76,217.67,32.18]
[1759317806853,3.44414042,217.78,217.67,32.18]
[1759317807861,0.66,217.77,217.67,32.18]
[1759317809749,13.79088422,217.76,217.67,32.18]
[1759317811653,13.79088422,217.76,217.66,56.62]
[1759317811968,13.79088422,217.76,217.68,32.16]
[1759317813331,13.79088422,217.76,217.69,32.16]
[1759317815037,0.66,217.8,217.69,32.16]
[1759317815470,13.79088422,217.79,217.69,32.16]
[1759317816041,14.45088422,217.79,217.69,32.16]
[1759317816558,2.78414042,217.81,217.69,32.16]
[1759317816764,14.45088422,217.78,217.69,32.16]
[1759317817245,0.66,217.78,217.69,32.16]
[1759317817446,13.79088422,217.77,217.69,32.16]
[1759317820071,14.45088422,217.77,217.69,32.16]
[1759317820365,0.66,217.77,217.69,32.16]
[1759317820547,0.66,217.76,217.7,32.16]
[1759317820745,0.66,217.75,217.7,32.16]
[1759317820940,13.79215226,217.76,217.7,32.16]
[1759317821162,0.66,217.77,217.7,32.16]
[1759317821764,14.12426414,217.83,217.71,13.59559401]
[1759317821765,0.1,217.83,217.71,13.59559401]
[1759317821968,13.8870815,217.83,217.71,13.59559401]
[1759317822344,13.8870815,217.83,217.71,27.38267551]
[1759317823676,14.5470815,217.83,217.71,13.59559401]
[1759317824544,0.66,217.82,217.72,32.22]
[1759317824746,0.66,217.82,217.73,13.59559401]
[1759317825057,14.44771514,217.82,217.73,13.59559401]
[1759317825245,13.78771514,217.82,217.73,13.59559401]
[1759317826095,14.44771514,217.82,217.73,13.59559401]
[1759317827974,0.1,217.83,217.73,13.59559401]
[1759317828177,0.66,217.81,217.73,13.59559401]
[1759317829304,13.78771514,217.82,217.73,13.59559401]
[1759317829993,13.78771514,217.82,217.73,34.39559401]
[1759317830378,14.44771514,217.82,217.73,34.39559401]
[1759317831269,0.1,217.83,217.73,34.39559401]
[1759317833692,0.7,217.82,217.74,32.2]
[1759317833885,14.48771514,217.82,217.74,32.2]
[1759317834598,14.48771514,217.82,217.75,32.18]
[1759317834804,14.48771514,217.82,217.76,13.59559401]
[1759317834967,0.7,217.82,217.76,13.59559401]
[1759317835861,0.7,217.82,217.77,35.82]
[1759317836061,0.1,217.83,217.77,35.82]
[1759317836479,0.1,217.83,217.78,13.59559401]
[1759317838867,0.1,217.83,217.79,32.18]
[1759317839561,0.1,217.83,217.8,13.59559401]
[1759317840188,0.1,217.83,217.81,66.55559401]
[1759317841124,0.1,217.83,217.82,32.16]
[1759317842464,0.1,217.83,217.82,45.75559401]
[1759317843476,0.1,217.83,217.8,20.8]
[1759317843666,0.8,217.83,217.81,52.96]
[1759317843866,0.1,217.83,217.81,52.96]
[1759317846895,0.8,217.83,217.81,52.96]
[1759317847084,0.8,217.83,217.81,20.8]
[1759317847284,0.8,217.83,217.82,32.16]
[1759317848626,0.1,217.83,217.82,32.16]
[1759317849980,0.8,217.83,217.82,32.16]
[1759317852770,0.1,217.83,217.82,32.16]
[1759317852996,0.8,217.83,217.78,13.59559401]
[1759317853197,0.8,217.83,217.79,32.16]
[1759317856127,0.1,217.83,217.8,13.59559401]
[1759317857901,150.3718046,217.84,217.82,34.39559401]
[1759317858105,150.3718046,217.84,217.83,45.75559401]
[1759317860213,150.3718046,217.84,217.83,13.59559401]
[1759317860425,150.3718046,217.84,217.83,45.73559401]
[1759317860804,150.3718046,217.84,217.83,13.59559401]
[1759317861113,150.3718046,217.84,217.83,45.73559401]
[1759317868005,105.9046672,217.84,217.83,45.73559401]
[1759317870734,61.4375298,217.84,217.83,45.73559401]
[1759317875737,61.4375298,217.84,217.83,81.53559401]
[1759317876235,61.4375298,217.84,217.83,49.39559401]
[1759317876429,62.1475298,217.84,217.83,81.53559401]
[1759317876815,61.4375298,217.84,217.83,81.53559401]
[1759317877015,61.4375298,217.84,217.83,49.39559401]
[1759317877231,62.1475298,217.84,217.83,49.39559401]
[1759317877434,62.1475298,217.84,217.83,81.53559401]
[1759317878029,62.1475298,217.84,217.83,35.8]
[1759317878231,62.1475298,217.84,217.79,13.59559401]
[1759317878442,62.1475298,217.84,217.82,35.8]
[1759317878443,0.71,217.83,217.82,35.8]
[1759317878679,0.71,217.83,217.82,65.16]
[1759317879238,61.4375298,217.84,217.83,13.59559401]
[1759317879818,62.1475298,217.84,217.83,13.59559401]
[1759317880417,62.1475298,217.84,217.83,45.73559401]
[1759317881035,20.72740025,217.84,217.83,45.73559401]
[1759317882122,0.1,217.87,217.83,45.73559401]
[1759317882539,0.1,217.87,217.86,34.39559401]
[1759317882739,0.1,217.87,217.86,66.53559401]
[1759317883238,0.81,217.87,217.86,66.53559401]
[1759317885555,0.1,217.87,217.86,34.39559401]
[1759317886037,0.1,217.87,217.86,66.53559401]
[1759317886963,0.81,217.87,217.86,66.53559401]
[1759317888352,0.81,217.87,217.86,13.59559401]
[1759317888525,0.81,217.87,217.86,45.73559401]
[1759317893021,0.1,217.87,217.86,45.73559401]
[1759317894833,0.1,217.87,217.86,13.59559401]
[1759317895032,0.1,217.87,217.86,45.73559401]
[1759317896751,0.77,217.87,217.86,45.73559401]
[1759317896952,0.77,217.87,217.86,13.59559401]
[1759317897149,0.77,217.87,217.86,45.73559401]
[1759317899453,0.1,217.87,217.86,45.73559401]
[1759317900158,0.1,217.87,217.86,81.53559401]
[1759317907069,0.77,217.87,217.86,81.51559401]
[1759317908259,0.77,217.87,217.86,49.39559401]
[1759317908460,0.77,217.87,217.86,81.51559401]
[1759317910874,0.77,217.87,217.86,67.92]
[1759317915250,0.77,217.87,217.86,81.51559401]
[1759317917282,0.77,217.87,217.86,49.39559401]
[1759317917468,0.77,217.87,217.86,81.51559401]
[1759317918382,0.1,217.87,217.86,81.51559401]
[1759317918600,0.77,217.87,217.86,49.39559401]
[1759317918776,0.77,217.87,217.86,81.51559401]
[1759317920465,0.77,217.87,217.86,35.8]
[1759317920674,0.77,217.87,217.86,67.92]
[1759317926173,0.77,217.87,217.86,35.8]
[1759317926396,0.77,217.87,217.86,67.92]
[1759317926902,0.77,217.87,217.86,35.8]
[1759317927106,0.77,217.87,217.86,67.92]
[1759317927767,0.77,217.87,217.86,35.8]
[1759317927975,0.77,217.87,217.86,67.92]
[1759317929682,0.77,217.87,217.86,35.8]
[1759317929883,0.77,217.87,217.86,67.92]
[1759317932198,3.65089495,217.87,217.86,67.92]
[1759317932702,0.77,217.87,217.86,67.92]
[1759317933207,0.77,217.87,217.78,20.8]
[1759317933208,3.55089495,217.87,217.81,35.8]
[1759317933373,2.78089495,217.84,217.75,13.59559401]
[1759317933575,0.72,217.83,217.76,32.16]
[1759317933797,0.72,217.82,217.76,32.16]
[1759317933998,0.72,217.81,217.76,32.16]
[1759317934181,0.72,217.8,217.76,32.16]
[1759317934383,0.72,217.79,217.76,32.16]
[1759317934697,0.72,217.78,217.74,35.8]
[1759317934887,0.72,217.77,217.75,32.16]
[1759317935983,0.72,217.76,217.75,32.16]
[1759317936284,0.72,217.76,217.74,35.8]
[1759317936486,0.72,217.75,217.74,35.8]
[1759317936697,0.72,217.75,217.74,67.96]
[1759317937288,0.72,217.75,217.66,5.5617899]
[1759317937488,0.72,217.74,217.68,13.59559401]
[1759317937675,0.72,217.74,217.69,32.16]
[1759317938579,2.78089495,217.78,217.69,32.16]
[1759317938774,0.72,217.77,217.69,32.16]
[1759317939000,0.72,217.76,217.69,32.16]
[1759317939186,0.72,217.75,217.69,32.16]
[1759317939788,0.72,217.74,217.69,32.16]
[1759317939995,2.78089495,217.78,217.69,32.16]
[1759317939996,0.72,217.73,217.69,32.16]
[1759317940792,0.72,217.72,217.7,32.16]
[1759317941190,0.72,217.71,217.7,32.16]
[1759317941385,0.72,217.71,217.68,20.8]
[1759317941592,2.78089495,217.76,217.69,32.16]
[1759317941809,0.72,217.75,217.69,32.16]
[1759317942110,0.72,217.74,217.69,32.16]
[1759317942407,2.78089495,217.76,217.69,32.16]
[1759317942408,0.72,217.73,217.69,32.16]
[1759317942590,0.72,217.72,217.69,32.16]
[1759317942796,0.72,217.71,217.69,32.16]
[1759317943103,0.72,217.7,217.65,35.8]
[1759317943284,13.71750715,217.74,217.66,32.18]
[1759317943285,0.72,217.69,217.66,32.18]
[1759317945384,0.72,217.68,217.66,32.18]
[1759317948219,0.72,217.7,217.66,32.18]
[1759317948431,0.72,217.69,217.66,32.18]
[1759317953235,0.72,217.71,217.66,32.18]
[1759317953788,0.68,217.7,217.66,32.18]
[1759317954840,0.68,217.71,217.66,32.18]
[1759317955203,13.79278637,217.74,217.66,32.18]
[1759317955419,0.68,217.73,217.66,32.18]
[1759317955626,0.68,217.72,217.66,32.18]
[1759317955838,0.68,217.71,217.66,32.18]
[1759317956140,0.68,217.7,217.66,32.18]
[1759317956509,0.68,217.71,217.66,32.18]
[1759317956704,13.79278637,217.74,217.66,32.18]
[1759317956905,0.68,217.73,217.67,13.59559401]
[1759317957110,0.68,217.73,217.68,32.16]
[1759317957328,0.68,217.75,217.69,13.59559401]
[1759317957528,0.68,217.75,217.7,32.16]
[1759317957922,0.68,217.74,217.7,32.16]
[1759317958829,0.68,217.76,217.7,32.16]
[1759317959638,0.68,217.75,217.71,32.16]
[1759317959820,0.68,217.74,217.71,32.16]
[1759317960142,0.68,217.73,217.71,32.16]
[1759317960314,0.68,217.72,217.71,32.16]
[1759317961132,0.68,217.72,217.69,13.59559401]
[1759317961343,0.68,217.72,217.71,32.16]
[1759317961538,0.68,217.71,217.7,35.82]
[1759317961721,0.68,217.71,217.7,67.98]
[1759317961922,0.68,217.71,217.64,13.78961641]
[1759317962247,2.78089495,217.8,217.65,32.24]
[1759317962248,2.78089495,217.68,217.65,32.24]
[1759317962537,0.68,217.67,217.65,32.24]
[1759317962920,0.68,217.66,217.65,32.24]
[1759317963126,0.68,217.69,217.65,32.24]
[1759317963322,0.68,217.68,217.65,32.24]
[1759317963726,13.78961641,217.7,217.65,32.24]
[1759317964050,0.68,217.69,217.65,32.24]
[1759317964547,0.68,217.68,217.65,32.24]
[1759317964935,0.68,217.67,217.65,32.24]
[1759317965247,0.68,217.69,217.65,32.24]
[1759317965832,0.68,217.68,217.65,32.24]
[1759317966146,0.68,217.72,217.65,32.24]
[1759317966345,0.68,217.72,217.66,13.59559401]
[1759317966924,0.68,217.72,217.67,35.82]
[1759317967149,20.67752996,217.75,217.68,32.32]
[1759317967325,6.88791355,217.75,217.68,32.32]
[1759317967647,0.68,217.74,217.68,32.32]
[1759317967841,0.68,217.74,217.69,32.34]
[1759317968042,0.68,217.73,217.69,32.34]
[1759317968243,0.68,217.72,217.69,32.34]
[1759317971147,0.68,217.71,217.67,35.82]
[1759317971333,0.68,217.7,217.68,32.32]
[1759317971649,0.68,217.69,217.68,32.32]
[1759317972645,13.79278637,217.73,217.68,32.32]
[1759317972849,0.68,217.71,217.68,32.32]
[1759317973157,0.68,217.7,217.68,32.32]
[1759317974535,0.68,217.7,217.69,32.3]
[1759317974856,13.79278637,217.73,217.67,35.82]
[1759317975049,2.78089495,217.74,217.68,32.3]
[1759317975250,14.47278637,217.73,217.68,32.3]
[1759317975430,0.68,217.72,217.68,32.3]
[1759317975630,0.68,217.71,217.68,32.3]
[1759317975863,0.68,217.7,217.67,35.82]
[1759317976044,13.79278637,217.73,217.69,32.3]
[1759317976438,2.78089495,217.74,217.69,32.3]
[1759317976639,0.68,217.73,217.69,32.3]
[1759317976850,0.68,217.72,217.69,32.3]
[1759317977030,0.68,217.71,217.69,32.3]
[1759317977228,0.68,217.7,217.69,32.3]
[1759317977742,0.68,217.7,217.67,35.82]
[1759317977946,0.68,217.69,217.68,32.28]
[1759317978349,13.79278637,217.72,217.68,32.28]
[1759317978566,0.68,217.71,217.68,32.28]
[1759317978773,0.68,217.7,217.68,32.28]
[1759317980648,0.69,217.72,217.68,32.28]
[1759317980845,0.69,217.71,217.68,32.28]
[1759317982736,0.69,217.7,217.68,32.28]
[1759317984665,0.65,217.73,217.68,32.28]
[1759317985053,0.65,217.73,217.67,35.82]
[1759317985054,0.65,217.72,217.67,35.82]
[1759317985242,0.65,217.72,217.68,32.26]
[1759317985837,6.20791355,217.74,217.68,32.26]
[1759317986043,0.65,217.73,217.68,32.26]
[1759317986853,6.85791355,217.73,217.68,32.26]
[1759317987170,0.65,217.72,217.68,32.26]
[1759317989151,6.20791355,217.73,217.68,32.26]
[1759317989353,6.20791355,217.75,217.68,32.26]
[1759317989640,0.65,217.76,217.68,32.26]
[1759317989641,6.20791355,217.76,217.69,13.59559401]
[1759317989846,6.20791355,217.76,217.75,13.59559401]
[1759317990065,0.65,217.84,217.75,45.91559401]
[1759317992148,0.1,217.87,217.75,45.91559401]
[1759317992351,0.65,217.83,217.75,45.91559401]
[1759317993649,14.05834249,217.87,217.75,45.91559401]
[1759317993852,0.65,217.86,217.75,45.91559401]
[1759317994054,0.65,217.85,217.75,45.91559401]
[1759317997564,0.65,217.84,217.75,45.91559401]
[1759317997862,0.65,217.83,217.75,45.91559401]
[1759317998061,0.65,217.84,217.75,45.91559401]
[1759318002162,0.65,217.84,217.75,13.59559401]
[1759318002360,0.65,217.84,217.76,32.28]
[1759318003350,0.1,217.87,217.77,13.59559401]
[1759318004371,0.65,217.86,217.77,13.59559401]
[1759318004575,0.65,217.85,217.78,32.28]
[1759318004773,0.65,217.84,217.79,32.28]
[1759318005076,0.65,217.83,217.79,32.28]
[1759318005368,1.78225604,217.86,217.79,32.28]
[1759318005369,0.65,217.82,217.79,32.28]
[1759318005575,0.65,217.81,217.79,32.28]
[1759318006158,0.65,217.81,217.8,32.28]
[1759318007275,0.65,217.83,217.8,32.28]
[1759318007478,0.65,217.82,217.8,32.28]
[1759318007658,13.88581439,217.87,217.8,32.28]
[1759318007976,0.65,217.82,217.8,32.28]
[1759318008972,13.88581439,217.87,217.8,32.28]
[1759318009175,0.65,217.86,217.8,32.28]
[1759318009379,0.65,217.85,217.8,32.28]
[1759318010759,21.45,217.84,217.8,32.28]
[1759318010960,0.65,217.83,217.8,32.28]
[1759318011169,0.65,217.83,217.71,13.59559401]
[1759318011372,0.65,217.83,217.73,13.59559401]
[1759318011575,21.45,217.83,217.73,13.59559401]
[1759318013387,0.65,217.83,217.73,13.59559401]
[1759318013793,0.7,217.82,217.73,13.59559401]
[1759318015483,34.58644792,217.86,217.73,13.59559401]
[1759318015787,0.7,217.85,217.73,13.59559401]
[1759318015986,0.7,217.84,217.73,13.59559401]
[1759318016288,0.7,217.83,217.74,32.24]
[1759318016469,0.7,217.82,217.74,32.24]